[Event "Titled Tuesday Blitz May 16 Early 2023"]
[White "Kubicka, Anna"]
[Black "Panesar Vedant"]
[WhiteFideId "1152254"]
[BlackFideId "35033018"]
[WhiteElo "2144"]
[BlackElo "2347"]
[Result "0-1"]
[Round "10"]
[TimeControl "180+2"]
[Date "2023.05.16"]
[WhiteClock "0:00:00"]
[BlackClock "0:00:38"]

1. e4 {[%clk 0:03:00]}  e5 {[%clk 0:02:50]} 2. Nf3 {[%clk 0:03:01]}  Nc6 {[%clk 0:02:51]} 3. Bb5 {[%clk 0:03:01]}  a6 {[%clk 0:02:51]} 4. Ba4 {[%clk 0:03:01]}  d6 {[%clk 0:02:52]} 5. O-O {[%clk 0:02:58]}  Bd7 {[%clk 0:02:52]} 6. d4 {[%clk 0:02:56]}  Nxd4 {[%clk 0:02:48]} 7. Bxd7+ {[%clk 0:02:53]}  Qxd7 {[%clk 0:02:49]} 8. Nxd4 {[%clk 0:02:54]}  exd4 {[%clk 0:02:49]} 9. Qxd4 {[%clk 0:02:53]}  Nf6 {[%clk 0:02:50]} 10. Nc3 {[%clk 0:02:52]}  Be7 {[%clk 0:02:50]} 11. b3 {[%clk 0:02:30]}  O-O {[%clk 0:02:49]} 12. Bb2 {[%clk 0:02:30]}  Rae8 {[%clk 0:02:36]} 13. Rad1 {[%clk 0:02:18]}  Bd8 {[%clk 0:02:33]} 14. Nd5 {[%clk 0:02:13]}  Kh8 {[%clk 0:02:23]} 15. Rfe1 {[%clk 0:01:57]}  Re6 {[%clk 0:02:20]} 16. Nf4 {[%clk 0:01:42]}  Re5 {[%clk 0:02:10]} 17. Qd3 {[%clk 0:01:36]}  Rg5 {[%clk 0:02:02]} 18. Nd5 {[%clk 0:01:25]}  Qg4 {[%clk 0:01:52]} 19. g3 {[%clk 0:01:20]}  Rg6 {[%clk 0:01:23]} 20. Qe2 {[%clk 0:00:52]}  Qxe2 {[%clk 0:01:12]} 21. Rxe2 {[%clk 0:00:53]}  Re8 {[%clk 0:01:08]} 22. Rde1 {[%clk 0:00:50]}  Kg8 {[%clk 0:01:01]} 23. h4 {[%clk 0:00:31]}  Nxd5 {[%clk 0:00:54]} 24. exd5 {[%clk 0:00:31]}  Rxe2 {[%clk 0:00:55]} 25. Rxe2 {[%clk 0:00:32]}  Kf8 {[%clk 0:00:56]} 26. Kf1 {[%clk 0:00:29]}  Bf6 {[%clk 0:00:54]} 27. Bxf6 {[%clk 0:00:25]}  Rxf6 {[%clk 0:00:54]} 28. Ke1 {[%clk 0:00:21]}  Rf3 {[%clk 0:00:51]} 29. Re3 {[%clk 0:00:16]}  Rxe3+ {[%clk 0:00:51]} 30. fxe3 {[%clk 0:00:17]}  Ke7 {[%clk 0:00:52]} 31. Ke2 {[%clk 0:00:17]}  Kf6 {[%clk 0:00:52]} 32. Kd3 {[%clk 0:00:15]}  Kf5 {[%clk 0:00:52]} 33. Ke2 {[%clk 0:00:10]}  Ke4 {[%clk 0:00:41]} 34. c4 {[%clk 0:00:10]}  h5 {[%clk 0:00:41]} 35. a3 {[%clk 0:00:09]}  b5 {[%clk 0:00:34]} 36. cxb5 {[%clk 0:00:07]}  axb5 {[%clk 0:00:35]} 37. a4 {[%clk 0:00:07]}  bxa4 {[%clk 0:00:35]} 38. bxa4 {[%clk 0:00:08]}  Kxd5 {[%clk 0:00:36]} 39. Kd3 {[%clk 0:00:08]}  c5 {[%clk 0:00:36]} 40. a5 {[%clk 0:00:05]}  Kc6 {[%clk 0:00:36]} 41. Kc4 {[%clk 0:00:05]}  d5+ {[%clk 0:00:36]} 42. Kb3 {[%clk 0:00:05]}  Kb5 {[%clk 0:00:37]} 43. e4 {[%clk 0:00:04]}  dxe4 {[%clk 0:00:36]} 44. Kc2 {[%clk 0:00:03]}  Kxa5 {[%clk 0:00:36]} 45. Kd2 {[%clk 0:00:04]}  f5 {[%clk 0:00:36]} 46. Ke3 {[%clk 0:00:05]}  c4 {[%clk 0:00:37]} 47. Kf4 {[%clk 0:00:03]}  c3 {[%clk 0:00:37]} 48. Kg5 {[%clk 0:00:00]}  e3 {[%clk 0:00:38]} 0-1


[Site "https://www.chess.com"]

[Event "Titled Tuesday Blitz May 16 Early 2023"]
[White "Mendez Fortes, Eduardo Jesus"]
[Black "Jovic, Stanoje"]
[WhiteFideId "3502376"]
[BlackFideId "905020"]
[WhiteElo "2307"]
[BlackElo "2236"]
[Result "0-1"]
[Round "10"]
[TimeControl "180+2"]
[Date "2023.05.16"]
[WhiteClock "0:00:09"]
[BlackClock "0:00:09"]

1. e4 {[%clk 0:02:55]}  c6 {[%clk 0:03:00]} 2. d4 {[%clk 0:02:55]}  d5 {[%clk 0:02:59]} 3. Nc3 {[%clk 0:02:56]}  dxe4 {[%clk 0:02:59]} 4. Nxe4 {[%clk 0:02:57]}  Nf6 {[%clk 0:02:59]} 5. Nxf6+ {[%clk 0:02:56]}  exf6 {[%clk 0:03:00]} 6. c3 {[%clk 0:02:57]}  Bd6 {[%clk 0:03:00]} 7. Bd3 {[%clk 0:02:57]}  O-O {[%clk 0:03:00]} 8. Qc2 {[%clk 0:02:58]}  h6 {[%clk 0:03:00]} 9. Ne2 {[%clk 0:02:57]}  Qc7 {[%clk 0:03:00]} 10. Ng3 {[%clk 0:02:51]}  Re8+ {[%clk 0:03:00]} 11. Be3 {[%clk 0:02:51]}  c5 {[%clk 0:02:59]} 12. O-O {[%clk 0:02:50]}  c4 {[%clk 0:02:59]} 13. Bh7+ {[%clk 0:02:41]}  Kh8 {[%clk 0:02:59]} 14. Be4 {[%clk 0:02:36]}  Nc6 {[%clk 0:02:53]} 15. Rfe1 {[%clk 0:02:29]}  b5 {[%clk 0:02:44]} 16. f3 {[%clk 0:02:11]}  Bb7 {[%clk 0:02:39]} 17. Qd2 {[%clk 0:02:05]}  g5 {[%clk 0:02:19]} 18. Nf5 {[%clk 0:01:58]}  Bxh2+ {[%clk 0:02:15]} 19. Kf2 {[%clk 0:01:57]}  Ne7 {[%clk 0:02:02]} 20. Bxb7 {[%clk 0:00:55]}  Nxf5 {[%clk 0:01:58]} 21. Bxa8 {[%clk 0:00:54]}  Bg3+ {[%clk 0:01:54]} 22. Kf1 {[%clk 0:00:53]}  Bxe1 {[%clk 0:01:52]} 23. Rxe1 {[%clk 0:00:52]}  Rxa8 {[%clk 0:01:51]} 24. Bf2 {[%clk 0:00:51]}  Kg7 {[%clk 0:01:44]} 25. Qe2 {[%clk 0:00:46]}  Qd7 {[%clk 0:01:41]} 26. Qe4 {[%clk 0:00:40]}  Rd8 {[%clk 0:01:39]} 27. g4 {[%clk 0:00:29]}  Nd6 {[%clk 0:01:28]} 28. Qd5 {[%clk 0:00:29]}  Nc8 {[%clk 0:01:19]} 29. Qc5 {[%clk 0:00:21]}  a6 {[%clk 0:01:09]} 30. Bg3 {[%clk 0:00:20]}  Qd5 {[%clk 0:01:03]} 31. Qxd5 {[%clk 0:00:20]}  Rxd5 {[%clk 0:01:04]} 32. Re8 {[%clk 0:00:21]}  Nb6 {[%clk 0:01:01]} 33. b3 {[%clk 0:00:19]}  f5 {[%clk 0:00:55]} 34. Bc7 {[%clk 0:00:15]}  Nd7 {[%clk 0:00:48]} 35. Ra8 {[%clk 0:00:15]}  b4 {[%clk 0:00:45]} 36. bxc4 {[%clk 0:00:14]}  bxc3 {[%clk 0:00:44]} 37. Ke2 {[%clk 0:00:12]}  Rxd4 {[%clk 0:00:42]} 38. Ba5 {[%clk 0:00:13]}  c2 {[%clk 0:00:38]} 39. Bd2 {[%clk 0:00:13]}  Ne5 {[%clk 0:00:35]} 40. gxf5 {[%clk 0:00:12]}  Nxf3 {[%clk 0:00:33]} 41. Bc1 {[%clk 0:00:12]}  Ne5 {[%clk 0:00:30]} 42. Bb2 {[%clk 0:00:08]}  f6 {[%clk 0:00:23]} 43. Ra7+ {[%clk 0:00:06]}  Kg8 {[%clk 0:00:23]} 44. Ra8+ {[%clk 0:00:06]}  Kf7 {[%clk 0:00:23]} 45. Ra7+ {[%clk 0:00:07]}  Ke8 {[%clk 0:00:24]} 46. Rxa6 {[%clk 0:00:08]}  Rxc4 {[%clk 0:00:19]} 47. Re6+ {[%clk 0:00:07]}  Kf7 {[%clk 0:00:17]} 48. Kd2 {[%clk 0:00:06]}  Nf3+ {[%clk 0:00:15]} 49. Ke3 {[%clk 0:00:04]}  Ne5 {[%clk 0:00:12]} 50. Kd2 {[%clk 0:00:04]}  g4 {[%clk 0:00:12]} 51. Ra6 {[%clk 0:00:03]}  g3 {[%clk 0:00:12]} 52. Ra7+ {[%clk 0:00:04]}  Ke8 {[%clk 0:00:11]} 53. Rg7 {[%clk 0:00:04]}  Rg4 {[%clk 0:00:11]} 54. Rxg4 {[%clk 0:00:04]}  Nxg4 {[%clk 0:00:11]} 55. Bd4 {[%clk 0:00:05]}  h5 {[%clk 0:00:09]} 56. a4 {[%clk 0:00:05]}  h4 {[%clk 0:00:09]} 57. a5 {[%clk 0:00:06]}  h3 {[%clk 0:00:10]} 58. a6 {[%clk 0:00:06]}  h2 {[%clk 0:00:10]} 59. a7 {[%clk 0:00:07]}  h1=Q {[%clk 0:00:10]} 60. Kxc2 {[%clk 0:00:08]}  Qa8 {[%clk 0:00:09]} 61. Kd3 {[%clk 0:00:08]}  g2 {[%clk 0:00:10]} 62. Kd2 {[%clk 0:00:09]}  Ne5 {[%clk 0:00:11]} 63. Ke2 {[%clk 0:00:09]}  Nc6 {[%clk 0:00:11]} 64. Bc5 {[%clk 0:00:09]}  Nxa7 {[%clk 0:00:11]} 65. Kf2 {[%clk 0:00:09]}  Nb5 {[%clk 0:00:11]} 66. Kg1 {[%clk 0:00:09]}  Qd5 {[%clk 0:00:11]} 67. Bb6 {[%clk 0:00:10]}  Nd4 {[%clk 0:00:11]} 68. Bc7 {[%clk 0:00:09]}  Qf3 {[%clk 0:00:10]} 69. Bg3 {[%clk 0:00:09]}  Qf1+ {[%clk 0:00:10]} 70. Kh2 {[%clk 0:00:09]}  Qh1# {[%clk 0:00:09]} 0-1


[Site "https://www.chess.com"]

[Event "Titled Tuesday Blitz May 16 Early 2023"]
[White "Klepikov, Nikita"]
[Black "Cezila Jr, Rubens"]
[WhiteFideId "24145220"]
[BlackFideId "2116723"]
[WhiteElo "2025"]
[BlackElo "2214"]
[Result "1-0"]
[Round "10"]
[TimeControl "180+2"]
[Date "2023.05.16"]
[WhiteClock "0:00:07"]
[BlackClock "0:00:00"]

1. e4 {[%clk 0:02:53]}  c6 {[%clk 0:02:59]} 2. d4 {[%clk 0:02:52]}  d5 {[%clk 0:02:59]} 3. Nd2 {[%clk 0:02:53]}  dxe4 {[%clk 0:02:59]} 4. Nxe4 {[%clk 0:02:54]}  Nf6 {[%clk 0:03:00]} 5. Nxf6+ {[%clk 0:02:54]}  exf6 {[%clk 0:03:01]} 6. c3 {[%clk 0:02:54]}  Bd6 {[%clk 0:03:01]} 7. Bd3 {[%clk 0:02:55]}  O-O {[%clk 0:03:01]} 8. Qc2 {[%clk 0:02:55]}  Re8+ {[%clk 0:03:02]} 9. Ne2 {[%clk 0:02:56]}  h5 {[%clk 0:03:02]} 10. h3 {[%clk 0:02:56]}  Nd7 {[%clk 0:02:59]} 11. Be3 {[%clk 0:02:55]}  Nf8 {[%clk 0:02:58]} 12. O-O-O {[%clk 0:02:41]}  Be6 {[%clk 0:02:57]} 13. c4 {[%clk 0:02:37]}  Rc8 {[%clk 0:02:53]} 14. g4 {[%clk 0:02:31]}  h4 {[%clk 0:02:33]} 15. Rhg1 {[%clk 0:02:06]}  b5 {[%clk 0:02:30]} 16. c5 {[%clk 0:02:02]}  Bb8 {[%clk 0:02:21]} 17. g5 {[%clk 0:01:47]}  f5 {[%clk 0:00:56]} 18. Bxf5 {[%clk 0:01:31]}  Qd5 {[%clk 0:00:54]} 19. Bxe6 {[%clk 0:01:18]}  Nxe6 {[%clk 0:00:49]} 20. Rg4 {[%clk 0:00:54]}  Qxa2 {[%clk 0:00:24]} 21. Rxh4 {[%clk 0:00:53]}  g6 {[%clk 0:00:22]} 22. Rh6 {[%clk 0:00:46]}  Qa1+ {[%clk 0:00:16]} 23. Kd2 {[%clk 0:00:46]}  Qa5+ {[%clk 0:00:17]} 24. Kc1 {[%clk 0:00:45]}  Qa1+ {[%clk 0:00:17]} 25. Kd2 {[%clk 0:00:32]}  Qa5+ {[%clk 0:00:17]} 26. Nc3 {[%clk 0:00:33]}  Rcd8 {[%clk 0:00:10]} 27. Kc1 {[%clk 0:00:21]}  Qa1+ {[%clk 0:00:07]} 28. Qb1 {[%clk 0:00:15]}  Qa5 {[%clk 0:00:06]} 29. h4 {[%clk 0:00:14]}  b4 {[%clk 0:00:06]} 30. Ne4 {[%clk 0:00:14]}  Kg7 {[%clk 0:00:03]} 31. h5 {[%clk 0:00:11]}  Rh8 {[%clk 0:00:03]} 32. Rxh8 {[%clk 0:00:11]}  Rxh8 {[%clk 0:00:03]} 33. h6+ {[%clk 0:00:10]}  Kf8 {[%clk 0:00:02]} 34. d5 {[%clk 0:00:08]}  cxd5 {[%clk 0:00:02]} 35. Rxd5 {[%clk 0:00:08]}  Qb5 {[%clk 0:00:00]} 36. Qd3 {[%clk 0:00:07]} 1-0


[Site "https://www.chess.com"]

[Event "Titled Tuesday Blitz May 16 Early 2023"]
[White "Madaminov, Mukhiddin"]
[Black "Koepke, Christian"]
[WhiteFideId "14210703"]
[BlackFideId "4655737"]
[WhiteElo "2511"]
[BlackElo "2204"]
[Result "1-0"]
[Round "10"]
[TimeControl "180+2"]
[Date "2023.05.16"]
[WhiteClock "0:00:33"]
[BlackClock "0:00:04"]

1. d4 {[%clk 0:03:00]}  d5 {[%clk 0:02:59]} 2. Nc3 {[%clk 0:02:59]}  c5 {[%clk 0:02:58]} 3. e4 {[%clk 0:02:57]}  dxe4 {[%clk 0:02:53]} 4. d5 {[%clk 0:02:57]}  Nf6 {[%clk 0:02:52]} 5. Nge2 {[%clk 0:02:56]}  Nbd7 {[%clk 0:02:44]} 6. Ng3 {[%clk 0:02:53]}  Nb6 {[%clk 0:02:42]} 7. Ngxe4 {[%clk 0:02:42]}  Nxe4 {[%clk 0:02:37]} 8. Nxe4 {[%clk 0:02:42]}  Qxd5 {[%clk 0:02:28]} 9. Bb5+ {[%clk 0:02:29]}  Bd7 {[%clk 0:02:27]} 10. Qxd5 {[%clk 0:02:26]}  Nxd5 {[%clk 0:02:26]} 11. Bxd7+ {[%clk 0:02:27]}  Kxd7 {[%clk 0:02:26]} 12. Nxc5+ {[%clk 0:02:28]}  Kc6 {[%clk 0:02:24]} 13. Nd3 {[%clk 0:02:28]}  f6 {[%clk 0:02:18]} 14. f4 {[%clk 0:02:28]}  e6 {[%clk 0:02:12]} 15. Ke2 {[%clk 0:02:26]}  Nb4 {[%clk 0:02:03]} 16. Nxb4+ {[%clk 0:02:25]}  Bxb4 {[%clk 0:02:04]} 17. a3 {[%clk 0:02:23]}  Bd6 {[%clk 0:02:03]} 18. Be3 {[%clk 0:02:22]}  f5 {[%clk 0:01:45]} 19. Rad1 {[%clk 0:02:15]}  e5 {[%clk 0:01:42]} 20. fxe5 {[%clk 0:02:00]}  Bxe5 {[%clk 0:01:42]} 21. b4 {[%clk 0:02:00]}  Rae8 {[%clk 0:01:36]} 22. Kf3 {[%clk 0:01:55]}  a6 {[%clk 0:01:24]} 23. c4 {[%clk 0:01:50]}  Re6 {[%clk 0:01:19]} 24. a4 {[%clk 0:01:46]}  Rhe8 {[%clk 0:01:12]} 25. b5+ {[%clk 0:01:45]}  Kc7 {[%clk 0:01:10]} 26. Bf2 {[%clk 0:01:42]}  g5 {[%clk 0:01:08]} 27. h3 {[%clk 0:01:31]}  g4+ {[%clk 0:00:48]} 28. hxg4 {[%clk 0:01:29]}  fxg4+ {[%clk 0:00:49]} 29. Kxg4 {[%clk 0:01:30]}  Rg6+ {[%clk 0:00:47]} 30. Kh5 {[%clk 0:01:28]}  Rxg2 {[%clk 0:00:43]} 31. Bh4 {[%clk 0:01:25]}  Bg3 {[%clk 0:00:26]} 32. Rd5 {[%clk 0:01:18]}  Re4 {[%clk 0:00:22]} 33. Bxg3+ {[%clk 0:01:14]}  Rxg3 {[%clk 0:00:21]} 34. a5 {[%clk 0:01:12]}  Rxc4 {[%clk 0:00:18]} 35. bxa6 {[%clk 0:01:07]}  bxa6 {[%clk 0:00:18]} 36. Rf1 {[%clk 0:01:04]}  Kc6 {[%clk 0:00:17]} 37. Rd8 {[%clk 0:00:56]}  Rh3+ {[%clk 0:00:16]} 38. Kg5 {[%clk 0:00:56]}  Rc5+ {[%clk 0:00:16]} 39. Kg4 {[%clk 0:00:57]}  Rhc3 {[%clk 0:00:13]} 40. Rb8 {[%clk 0:00:54]}  R3c4+ {[%clk 0:00:12]} 41. Kg3 {[%clk 0:00:54]}  Rxa5 {[%clk 0:00:11]} 42. Rc8+ {[%clk 0:00:52]}  Kb5 {[%clk 0:00:07]} 43. Rf5+ {[%clk 0:00:48]}  Kb6 {[%clk 0:00:07]} 44. Rf6+ {[%clk 0:00:33]}  Kb7 {[%clk 0:00:04]} 45. Rxc4 {[%clk 0:00:33]} 1-0


[Site "https://www.chess.com"]

[Event "Titled Tuesday Blitz May 16 Early 2023"]
[White "Mirzoev, Azer"]
[Black "Dino_Ballecer"]
[WhiteFideId "13400304"]
[WhiteElo "2525"]
[BlackElo "2536"]
[Result "1-0"]
[Round "10"]
[TimeControl "180+2"]
[Date "2023.05.16"]
[WhiteClock "0:01:37"]
[BlackClock "0:01:34"]

1. e4 {[%clk 0:03:00]}  c5 {[%clk 0:02:59]} 2. Nc3 {[%clk 0:03:00]}  Nc6 {[%clk 0:02:59]} 3. g3 {[%clk 0:03:00]}  g6 {[%clk 0:02:59]} 4. Bg2 {[%clk 0:03:00]}  Bg7 {[%clk 0:02:59]} 5. d3 {[%clk 0:03:01]}  d6 {[%clk 0:03:00]} 6. h4 {[%clk 0:03:00]}  h5 {[%clk 0:02:59]} 7. Bg5 {[%clk 0:02:57]}  Qb6 {[%clk 0:02:57]} 8. Qc1 {[%clk 0:02:55]}  Bh6 {[%clk 0:02:53]} 9. Nge2 {[%clk 0:02:49]}  f6 {[%clk 0:02:53]} 10. Bxh6 {[%clk 0:02:48]}  Nxh6 {[%clk 0:02:54]} 11. Nd5 {[%clk 0:02:48]}  Qd8 {[%clk 0:02:54]} 12. O-O {[%clk 0:02:46]}  e6 {[%clk 0:02:52]} 13. Ndf4 {[%clk 0:02:37]}  Kf7 {[%clk 0:02:52]} 14. c3 {[%clk 0:02:36]}  Qe7 {[%clk 0:02:46]} 15. d4 {[%clk 0:02:35]}  Kg7 {[%clk 0:02:42]} 16. d5 {[%clk 0:02:31]}  Ne5 {[%clk 0:02:39]} 17. Nxe6+ {[%clk 0:02:27]}  Bxe6 {[%clk 0:02:40]} 18. dxe6 {[%clk 0:02:28]}  Qxe6 {[%clk 0:02:40]} 19. Nf4 {[%clk 0:02:28]}  Qf7 {[%clk 0:02:39]} 20. Nd5 {[%clk 0:02:27]}  Rhe8 {[%clk 0:02:37]} 21. Qd2 {[%clk 0:02:27]}  Rad8 {[%clk 0:02:31]} 22. Rad1 {[%clk 0:02:27]}  f5 {[%clk 0:02:25]} 23. exf5 {[%clk 0:02:26]}  Nxf5 {[%clk 0:02:25]} 24. Rfe1 {[%clk 0:02:18]}  b6 {[%clk 0:02:17]} 25. Qg5 {[%clk 0:02:03]}  Ng4 {[%clk 0:02:01]} 26. Nf4 {[%clk 0:02:00]}  Kh7 {[%clk 0:01:53]} 27. Bc6 {[%clk 0:01:50]}  Re5 {[%clk 0:01:44]} 28. Qxd8 {[%clk 0:01:45]}  Nxh4 {[%clk 0:01:34]} 29. Qxh4 {[%clk 0:01:37]} 1-0


[Site "https://www.chess.com"]

[Event "Titled Tuesday Blitz May 16 Early 2023"]
[White "Begmuratov, Alisher"]
[Black "Maxfan2008"]
[WhiteFideId "14203367"]
[WhiteElo "2387"]
[BlackElo "2536"]
[Result "1-0"]
[Round "10"]
[TimeControl "180+2"]
[Date "2023.05.16"]
[WhiteClock "0:02:18"]
[BlackClock "0:02:11"]

1. d4 {[%clk 0:03:00]}  Nf6 {[%clk 0:02:59]} 2. Nf3 {[%clk 0:02:59]}  d5 {[%clk 0:02:58]} 3. Bf4 {[%clk 0:02:58]}  c5 {[%clk 0:02:58]} 4. e3 {[%clk 0:02:58]}  Nc6 {[%clk 0:02:58]} 5. c3 {[%clk 0:02:58]}  Qb6 {[%clk 0:02:53]} 6. Qc1 {[%clk 0:02:57]}  Bf5 {[%clk 0:02:50]} 7. Nbd2 {[%clk 0:02:57]}  e6 {[%clk 0:02:50]} 8. Be2 {[%clk 0:02:56]}  h6 {[%clk 0:02:49]} 9. O-O {[%clk 0:02:56]}  Nh5 {[%clk 0:02:50]} 10. Be5 {[%clk 0:02:50]}  f6 {[%clk 0:02:48]} 11. Nh4 {[%clk 0:02:46]}  fxe5 {[%clk 0:02:44]} 12. Bxh5+ {[%clk 0:02:44]}  Kd7 {[%clk 0:02:44]} 13. Nxf5 {[%clk 0:02:42]}  exf5 {[%clk 0:02:44]} 14. Qc2 {[%clk 0:02:39]}  e4 {[%clk 0:02:43]} 15. c4 {[%clk 0:02:34]}  Nb4 {[%clk 0:02:37]} 16. Qb3 {[%clk 0:02:25]}  Nd3 {[%clk 0:02:33]} 17. Qa4+ {[%clk 0:02:21]}  Qc6 {[%clk 0:02:33]} 18. Qb3 {[%clk 0:02:20]}  cxd4 {[%clk 0:02:23]} 19. cxd5 {[%clk 0:02:19]}  Qb6 {[%clk 0:02:20]} 20. Qa4+ {[%clk 0:02:18]}  Kd6 {[%clk 0:02:11]} 21. Nc4+ {[%clk 0:02:18]} 1-0


[Site "https://www.chess.com"]

[Event "Titled Tuesday Blitz May 16 Early 2023"]
[White "Goltseva, Ekaterina"]
[Black "Herrera Ortiz, Miguel"]
[WhiteFideId "24173770"]
[BlackFideId "5100550"]
[WhiteElo "2114"]
[BlackElo "2618"]
[Result "0-1"]
[Round "10"]
[TimeControl "180+2"]
[Date "2023.05.16"]
[WhiteClock "0:00:04"]
[BlackClock "0:01:24"]

1. e4 {[%clk 0:03:00]}  e5 {[%clk 0:02:58]} 2. Nf3 {[%clk 0:03:00]}  Nc6 {[%clk 0:02:59]} 3. Nc3 {[%clk 0:03:00]}  Nf6 {[%clk 0:02:58]} 4. h3 {[%clk 0:02:58]}  d6 {[%clk 0:02:55]} 5. d4 {[%clk 0:02:57]}  exd4 {[%clk 0:02:54]} 6. Nxd4 {[%clk 0:02:58]}  Be7 {[%clk 0:02:54]} 7. Bb5 {[%clk 0:02:56]}  Bd7 {[%clk 0:02:54]} 8. O-O {[%clk 0:02:57]}  Nxd4 {[%clk 0:02:51]} 9. Qxd4 {[%clk 0:02:54]}  Bxb5 {[%clk 0:02:49]} 10. Nxb5 {[%clk 0:02:54]}  O-O {[%clk 0:02:50]} 11. Re1 {[%clk 0:02:50]}  Nd7 {[%clk 0:02:47]} 12. Qc3 {[%clk 0:02:46]}  c6 {[%clk 0:02:41]} 13. Nd4 {[%clk 0:02:46]}  Bf6 {[%clk 0:02:41]} 14. Qd3 {[%clk 0:02:36]}  Re8 {[%clk 0:02:35]} 15. c3 {[%clk 0:02:26]}  d5 {[%clk 0:02:27]} 16. f3 {[%clk 0:01:12]}  Nc5 {[%clk 0:02:17]} 17. Qc2 {[%clk 0:01:11]}  dxe4 {[%clk 0:02:17]} 18. fxe4 {[%clk 0:01:06]}  Bxd4+ {[%clk 0:02:17]} 19. cxd4 {[%clk 0:01:04]}  Ne6 {[%clk 0:02:10]} 20. Rd1 {[%clk 0:00:21]}  Nxd4 {[%clk 0:01:54]} 21. Qf2 {[%clk 0:00:18]}  Rxe4 {[%clk 0:01:47]} 22. Be3 {[%clk 0:00:18]}  c5 {[%clk 0:01:45]} 23. Rac1 {[%clk 0:00:19]}  b6 {[%clk 0:01:44]} 24. b4 {[%clk 0:00:20]}  Rc8 {[%clk 0:01:42]} 25. bxc5 {[%clk 0:00:20]}  bxc5 {[%clk 0:01:42]} 26. Rc4 {[%clk 0:00:19]}  Qd5 {[%clk 0:01:37]} 27. Rdc1 {[%clk 0:00:12]}  Ne6 {[%clk 0:01:27]} 28. Bxc5 {[%clk 0:00:09]}  Rxc4 {[%clk 0:01:25]} 29. Rxc4 {[%clk 0:00:04]}  Qxc4 {[%clk 0:01:24]} 0-1


[Site "https://www.chess.com"]

[Event "Titled Tuesday Blitz May 16 Early 2023"]
[White "Kamalidenova, Meruert"]
[Black "Arat, Ufuk Sezen"]
[WhiteFideId "13712802"]
[BlackFideId "6309089"]
[WhiteElo "2361"]
[BlackElo "2289"]
[Result "1-0"]
[Round "10"]
[TimeControl "180+2"]
[Date "2023.05.16"]
[WhiteClock "0:00:52"]
[BlackClock "0:00:06"]

1. e4 {[%clk 0:02:57]}  c5 {[%clk 0:02:58]} 2. Nf3 {[%clk 0:02:56]}  e6 {[%clk 0:02:58]} 3. d4 {[%clk 0:02:56]}  cxd4 {[%clk 0:02:59]} 4. Nxd4 {[%clk 0:02:57]}  Nc6 {[%clk 0:02:59]} 5. Nc3 {[%clk 0:02:56]}  Qc7 {[%clk 0:02:59]} 6. Be3 {[%clk 0:02:54]}  a6 {[%clk 0:02:59]} 7. a3 {[%clk 0:02:55]}  Nf6 {[%clk 0:03:00]} 8. Qf3 {[%clk 0:02:53]}  b5 {[%clk 0:02:58]} 9. O-O-O {[%clk 0:02:53]}  Bb7 {[%clk 0:02:58]} 10. Qg3 {[%clk 0:02:43]}  Qxg3 {[%clk 0:02:52]} 11. hxg3 {[%clk 0:02:42]}  Nxd4 {[%clk 0:02:52]} 12. Rxd4 {[%clk 0:02:37]}  Bc5 {[%clk 0:02:52]} 13. Rd3 {[%clk 0:02:37]}  Rc8 {[%clk 0:02:38]} 14. f3 {[%clk 0:02:30]}  O-O {[%clk 0:02:30]} 15. Bg5 {[%clk 0:02:18]}  Bc6 {[%clk 0:01:59]} 16. b4 {[%clk 0:02:08]}  Bb6 {[%clk 0:01:54]} 17. Kb2 {[%clk 0:02:07]}  a5 {[%clk 0:01:08]} 18. Rd1 {[%clk 0:01:55]}  axb4 {[%clk 0:01:08]} 19. axb4 {[%clk 0:01:54]}  Bf2 {[%clk 0:00:57]} 20. g4 {[%clk 0:01:49]}  h6 {[%clk 0:00:57]} 21. Bxf6 {[%clk 0:01:48]}  gxf6 {[%clk 0:00:58]} 22. Kb3 {[%clk 0:01:47]}  d5 {[%clk 0:00:45]} 23. exd5 {[%clk 0:01:45]}  exd5 {[%clk 0:00:45]} 24. Bxb5 {[%clk 0:01:41]}  d4 {[%clk 0:00:39]} 25. Bxc6 {[%clk 0:01:40]}  Rxc6 {[%clk 0:00:37]} 26. Nd5 {[%clk 0:01:39]}  Kg7 {[%clk 0:00:32]} 27. Ne7 {[%clk 0:01:39]}  Rb6 {[%clk 0:00:28]} 28. Nf5+ {[%clk 0:01:39]}  Kg6 {[%clk 0:00:29]} 29. f4 {[%clk 0:01:34]}  Rh8 {[%clk 0:00:18]} 30. Rh3 {[%clk 0:01:34]}  h5 {[%clk 0:00:17]} 31. Ne7+ {[%clk 0:01:32]}  Kg7 {[%clk 0:00:17]} 32. gxh5 {[%clk 0:01:31]}  Rhb8 {[%clk 0:00:15]} 33. Kc4 {[%clk 0:01:29]}  R6b7 {[%clk 0:00:12]} 34. Nf5+ {[%clk 0:01:27]}  Kh7 {[%clk 0:00:13]} 35. Rb1 {[%clk 0:01:21]}  Rc7+ {[%clk 0:00:12]} 36. Kd3 {[%clk 0:01:22]}  Rbc8 {[%clk 0:00:08]} 37. Rb2 {[%clk 0:01:19]}  Be1 {[%clk 0:00:07]} 38. Nxd4 {[%clk 0:01:18]}  Bc3 {[%clk 0:00:07]} 39. Rb3 {[%clk 0:01:16]}  Ba1 {[%clk 0:00:07]} 40. Nf3 {[%clk 0:00:53]}  Rc3+ {[%clk 0:00:07]} 41. Rxc3 {[%clk 0:00:52]}  Rxc3+ {[%clk 0:00:08]} 42. Kd2 {[%clk 0:00:53]}  Rc4 {[%clk 0:00:08]} 43. b5 {[%clk 0:00:51]}  Rxf4 {[%clk 0:00:07]} 44. Rh4 {[%clk 0:00:50]}  Rf5 {[%clk 0:00:05]} 45. Rb4 {[%clk 0:00:50]}  Be5 {[%clk 0:00:03]} 46. Nxe5 {[%clk 0:00:49]}  Rxe5 {[%clk 0:00:03]} 47. b6 {[%clk 0:00:50]}  Rd5+ {[%clk 0:00:04]} 48. Ke3 {[%clk 0:00:49]}  Rd8 {[%clk 0:00:04]} 49. b7 {[%clk 0:00:50]}  Rb8 {[%clk 0:00:05]} 50. c4 {[%clk 0:00:50]}  Kg7 {[%clk 0:00:05]} 51. c5 {[%clk 0:00:51]}  Kf8 {[%clk 0:00:06]} 52. c6 {[%clk 0:00:52]}  Ke7 {[%clk 0:00:06]} 53. c7 {[%clk 0:00:52]} 1-0


[Site "https://www.chess.com"]